bitfinex/quotes_ETHUSD_20220117
["timestamp","ask_amount","ask_price","bid_price","bid_amount"]
[1642422411080,0.01334526,3266.9,3266.0,0.00397896]
[1642422411289,0.01334526,3266.9,3266.2,0.00284211]
[1642422411479,1.31023188,3266.6,3266.2,0.00284211]
[1642422412481,0.01952221,3266.5,3266.2,0.00284211]
[1642422412682,1.31023188,3266.6,3266.3,0.02122717]
[1642422413083,1.31023188,3266.6,3266.4,0.00170526]
[1642422414538,1.31023188,3266.6,3265.9,1.53487738]
[1642422414732,1.31023188,3266.6,3265.9,0.00454738]
[1642422414932,1.31023188,3266.6,3266.0,0.00397896]
[1642422415532,1.31023188,3266.6,3266.0,1.00397896]
[1642422415733,1.31023188,3266.6,3266.0,1.44697896]
[1642422415935,1.31023188,3266.6,3266.1,0.00341053]
[1642422417535,1.31023188,3266.6,3266.2,0.01794733]
[1642422417934,1.35377985,3266.6,3266.3,0.00227369]
[1642422418381,1.35377985,3266.6,3266.2,0.00284211]
[1642422418582,0.03613851,3266.5,3266.2,0.00284211]
[1642422418782,0.03613851,3266.5,3266.1,0.00341053]
[1642422419188,1.35377985,3266.6,3266.1,0.00341053]
[1642422419583,1.35377985,3266.6,3266.1,2.59422129]
[1642422419785,1.65377985,3266.6,3266.1,2.59081076]
[1642422420086,1.65377985,3266.6,3266.2,0.00284211]
[1642422420087,1.33501275,3266.5,3266.2,0.00284211]
[1642422420688,1.33501275,3266.5,3266.3,0.01683442]
[1642422420885,1.33501275,3266.5,3266.2,0.00284211]
[1642422421085,1.33501275,3266.5,3266.1,2.59081076]
[1642422421086,1.33501275,3266.5,3266.4,0.00170526]
[1642422421286,1.33501275,3266.5,3266.2,0.00284211]
[1642422421486,1.63501275,3266.5,3265.9,0.00454738]
[1642422421690,0.7654726,3266.3,3265.9,0.00454738]
[1642422422336,0.00744922,3266.2,3265.9,0.00454738]
[1642422422535,1.33792559,3266.0,3265.9,0.00454738]
[1642422422933,1.33792559,3266.0,3265.4,0.0073895]
[1642422423535,1.33792559,3266.0,3265.9,2.59081076]
[1642422423935,1.33792559,3266.0,3265.9,2.59535814]
[1642422424339,20.53792559,3266.0,3265.9,2.59535814]
[1642422424542,15.4,3265.9,3265.0,1.54294954]
[1642422424738,0.7657012,3265.7,3265.0,1.54294954]
[1642422424937,17.78419921,3265.6,3265.5,2.59133432]
[1642422425136,0.7657012,3265.7,3265.1,0.00454739]
[1642422425137,12.0,3265.5,3265.1,0.00454739]
[1642422425336,0.76583,3265.4,3264.7,1.54294954]
[1642422425537,1.12382987,3264.9,3264.7,1.54294954]
[1642422425784,1.88967537,3264.9,3264.7,0.34644954]
[1642422425984,1.16957827,3264.8,3264.7,0.34644954]
[1642422426185,1.16957827,3264.8,3264.4,5.24554556]
[1642422426385,1.16957827,3264.8,3264.7,0.00682108]
[1642422427384,1.44636524,3264.2,3263.9,0.01136847]
[1642422427786,1.531832,3264.6,3263.9,0.01136847]
[1642422427988,0.04355135,3264.8,3263.9,0.01136847]
[1642422428684,0.04355135,3264.8,3263.5,3.9471088]
[1642422428685,0.04355135,3264.8,3263.6,0.01307374]
[1642422429084,0.04355135,3264.8,3263.6,2.29746877]
[1642422429287,0.04355135,3264.8,3263.8,1.22036777]
[1642422429551,0.04355135,3264.8,3264.0,1.56037911]
[1642422429735,0.04355135,3264.8,3264.1,3.21261749]
[1642422429935,0.04355135,3264.8,3264.1,3.98839911]
[1642422430136,0.04355135,3264.8,3264.2,0.0096632]
[1642422430137,0.07479112,3264.8,3264.2,0.0096632]
[1642422430336,0.07479112,3264.8,3264.3,0.443]
[1642422430636,0.07479112,3264.8,3264.4,0.00852635]
[1642422430835,0.07479112,3264.8,3264.4,2.28784368]
[1642422431235,0.07479112,3264.8,3264.5,0.00795793]
[1642422431435,0.07479112,3264.8,3264.7,1.19289751]
[1642422431637,0.07479112,3264.8,3264.7,3.99772353]
[1642422431838,0.07479112,3264.8,3264.7,1.63589751]
[1642422432140,0.07479112,3264.8,3264.7,0.443]
[1642422433289,0.07479112,3264.8,3264.7,2.70045155]
[1642422433788,0.07479112,3264.8,3264.7,0.443]
[1642422433983,0.07479112,3264.8,3264.7,2.70708798]
[1642422435285,0.07479112,3264.8,3264.7,0.443]
[1642422440335,0.07479112,3264.8,3264.7,2.7816309]
[1642422440535,0.07479112,3264.8,3264.7,0.443]
[1642422440787,0.07479112,3264.8,3264.7,1.443]
[1642422441187,0.07479112,3264.8,3264.7,0.443]
[1642422441387,0.07479112,3264.8,3264.7,1.443]
[1642422441589,0.07479112,3264.8,3264.7,1.54005278]
[1642422442091,3.9237,3265.9,3264.7,3.59375278]
[1642422442289,3.7707,3266.2,3265.2,0.76541]
[1642422442488,3.7707,3266.2,3265.3,0.443]
[1642422442692,0.00113685,3266.1,3265.3,3.0672239]
[1642422442988,0.00113685,3266.1,3265.4,0.00284212]
[1642422443190,0.00113685,3266.1,3265.5,1.99176337]
[1642422443388,0.00113685,3266.1,3265.6,2.74596141]
[1642422443587,0.00113685,3266.1,3265.7,1.443]
[1642422443788,0.00113685,3266.1,3265.9,0.76522]
[1642422443989,0.00113685,3266.1,3266.0,0.443]
[1642422444638,0.00113685,3266.1,3265.7,0.00113685]
[1642422444838,0.04780403,3266.0,3265.8,2.27769835]
[1642422445040,0.00113685,3266.1,3265.8,2.27769835]
[1642422446137,0.00113685,3266.1,3265.5,0.00227369]
[1642422446138,0.02578727,3266.0,3265.5,0.00227369]
[1642422446741,1.07956368,3266.1,3265.0,0.00511581]
[1642422446939,1.386743,3265.7,3265.0,0.00511581]
[1642422447338,1.24895003,3265.5,3265.0,0.00511581]
[1642422447540,1.24895003,3265.5,3265.0,2.29055922]
[1642422447739,3.63303685,3266.1,3265.0,2.29055922]
[1642422447944,3.63303685,3266.1,3265.1,0.00454739]
[1642422448138,0.00113685,3266.1,3265.1,0.00454739]
[1642422448590,0.00113685,3266.1,3265.1,2.2899908]
[1642422448791,0.00113685,3266.1,3265.2,2.3906951]
[1642422448988,0.00113685,3266.1,3265.2,3.60309407]
[1642422449188,0.00113685,3266.1,3265.3,0.00341054]
[1642422449391,0.00113685,3266.1,3265.4,1.54381129]
[1642422449591,0.00113685,3266.1,3265.5,2.32597688]
[1642422449792,0.00113685,3266.1,3265.6,0.443]
[1642422449990,0.00113685,3266.1,3265.7,2.49156454]
[1642422450290,0.00113685,3266.1,3265.8,0.443]
[1642422450494,0.00113685,3266.1,3265.9,2.24390521]
[1642422450689,0.00113685,3266.1,3265.9,3.33541102]
[1642422450894,0.00113685,3266.1,3266.0,18.70172887]
[1642422452141,0.00113685,3266.1,3266.0,20.98717228]
[1642422453141,0.00113685,3266.1,3266.0,21.98717228]
[1642422453337,0.00113685,3266.1,3266.0,24.67001653]
[1642422457307,3.685e-05,3266.1,3266.0,24.67001653]
[1642422457491,1.6612163,3267.4,3266.2,18.04015388]
[1642422457689,1.6612163,3267.4,3266.4,6.3303523]
[1642422457890,1.6612163,3267.4,3266.5,0.443]
[1642422457891,0.00682108,3267.3,3266.5,0.443]
[1642422458089,0.00682108,3267.3,3266.5,1.77683026]
[1642422458295,0.00625265,3267.2,3266.5,1.77683026]
[1642422458489,0.00625265,3267.2,3266.6,2.64937515]
[1642422458691,0.00568423,3267.1,3266.7,0.443]
[1642422458891,0.00568423,3267.1,3266.7,1.443]
[1642422459091,1.6612163,3267.4,3266.7,1.0229]
[1642422459092,0.00511581,3267.0,3266.7,1.0229]
[1642422459292,0.00511581,3267.0,3266.7,1.06250475]
[1642422459547,0.00454738,3266.9,3266.7,2.06250475]
[1642422459737,0.00454738,3266.9,3266.7,2.0229]
[1642422459938,0.00397896,3266.8,3266.7,26.54074003]
[1642422460137,0.00397896,3266.8,3266.7,3.55288]
[1642422460339,0.00397896,3266.8,3266.7,0.443]
[1642422461338,1.46597912,3266.8,3266.7,0.443]
[1642422461739,0.00397896,3266.8,3266.7,0.443]
[1642422462039,0.00397896,3266.8,3266.7,11.143]
[1642422462647,0.00397896,3266.8,3266.7,12.143]
[1642422462839,0.00397896,3266.8,3266.7,12.443]
[1642422463041,0.00397896,3266.8,3266.7,25.79426733]
[1642422463790,0.00397896,3266.8,3266.7,25.83308591]
[1642422463990,0.00397896,3266.8,3266.7,25.79426733]
[1642422464192,0.00397896,3266.8,3266.7,25.83177458]
[1642422464692,1.6612163,3267.4,3266.9,0.76494]
[1642422464906,1.6612163,3267.4,3267.0,0.443]
[1642422465092,0.00284212,3267.3,3267.0,0.443]
[1642422465392,1.6612163,3267.4,3267.0,0.443]
[1642422465393,0.00227369,3267.2,3267.0,0.443]
[1642422465592,0.00227369,3267.2,3267.1,16.45799968]
[1642422465893,1.6612163,3267.4,3267.1,16.90099968]
[1642422466099,1.6612163,3267.4,3267.2,2.29084279]
[1642422466394,0.05,3267.8,3267.2,2.29084279]
[1642422466395,0.05,3267.8,3267.3,23.8]
[1642422466594,0.05,3267.8,3267.5,1.52953]
[1642422466793,0.00227369,3267.7,3267.6,17.993]
[1642422467040,0.00227369,3267.7,3267.6,19.293]
[1642422467236,0.00227369,3267.7,3267.6,21.70155969]
[1642422467634,0.00227369,3267.7,3267.6,22.46631969]
[1642422468836,0.00227369,3267.7,3267.6,28.71631969]
[1642422469035,0.00227369,3267.7,3267.6,22.46631969]
[1642422469837,0.00227369,3267.7,3267.6,28.71631969]
[1642422470237,0.00227369,3267.7,3267.6,27.41631969]
[1642422470437,0.00227369,3267.7,3267.6,28.71631969]
[1642422470638,0.00227369,3267.7,3267.6,28.75163949]
[1642422470883,0.08392647,3267.8,3267.7,23.8]
[1642422471105,0.08392647,3267.8,3267.7,25.243]
[1642422472685,3.7446,3269.0,3267.8,18.6]
[1642422472885,3.7446,3269.0,3268.3,0.76466]
[1642422473086,0.00568424,3268.7,3268.3,0.76466]
[1642422473285,0.00568424,3268.7,3268.4,0.443]
[1642422473585,0.00511581,3268.6,3268.4,3.85457485]
[1642422473791,0.00511581,3268.6,3268.5,26.34134665]
[1642422473985,3.7524,3269.5,3268.5,29.08468541]
[1642422474186,7.41,3269.6,3268.8,0.76457]
[1642422474388,7.41,3269.6,3268.9,2.7632382]
[1642422474389,0.0096632,3269.4,3268.9,2.7632382]
[1642422474632,0.0096632,3269.4,3268.9,0.443]
[1642422474832,0.00909478,3269.3,3268.9,0.443]
[1642422475233,0.00852635,3269.2,3268.9,0.443]
[1642422475436,0.02551165,3269.1,3268.9,0.443]
[1642422475635,0.03346958,3269.1,3268.9,0.443]
[1642422475835,7.42279756,3269.6,3268.9,0.443]
[1642422475836,0.00738951,3269.0,3268.9,8.593]
[1642422476234,0.00738951,3269.0,3268.9,0.443]
[1642422476639,0.00738951,3269.0,3268.4,0.443]
[1642422477036,0.00682108,3268.9,3268.4,0.443]
[1642422477436,0.00625266,3268.8,3268.4,0.443]
[1642422477837,0.00568424,3268.7,3268.4,0.443]
[1642422478284,0.00511581,3268.6,3268.4,0.443]
[1642422478684,0.00454739,3268.5,3268.4,0.443]
[1642422478884,0.00454739,3268.5,3268.4,8.293]
[1642422479088,0.00454739,3268.5,3268.4,0.443]
[1642422479783,0.00454739,3268.5,3268.4,15.193]
[1642422479983,0.00454739,3268.5,3268.4,0.443]
[1642422481885,0.00454739,3268.5,3267.7,1.76483]
[1642422482142,0.00454739,3268.5,3268.0,0.443]
[1642422482336,0.00397897,3268.4,3268.0,0.443]
[1642422482535,0.00397897,3268.4,3268.1,0.77431035]
[1642422482735,0.00341054,3268.3,3268.2,14.5]
[1642422483135,0.00341054,3268.3,3268.0,0.443]
[1642422483334,0.00699373,3268.2,3268.0,0.443]
[1642422483534,0.00983585,3268.2,3268.0,0.443]
[1642422483736,0.0022737,3268.1,3268.0,13.543]
[1642422484734,0.0022737,3268.1,3268.0,0.443]
[1642422484937,0.0022737,3268.1,3267.2,0.443]
[1642422485136,0.04780403,3268.0,3267.0,3.3176]
[1642422485334,0.00170527,3268.0,3267.3,0.00227369]
[1642422485535,1.14405637,3267.6,3267.3,0.00227369]
[1642422485784,0.00867915,3267.5,3267.3,0.00227369]
[1642422485985,0.00867915,3267.5,3267.0,0.00397896]
[1642422487006,1.14405637,3267.6,3267.2,0.00284212]
[1642422488401,0.76515,3268.0,3267.2,0.00284212]
[1642422488600,0.76515,3268.0,3267.3,0.00723405]
[1642422488801,0.00113685,3267.9,3267.3,0.00723405]
[1642422489003,0.00113685,3267.9,3267.4,0.00170527]
[1642422489402,1.28856767,3267.9,3267.2,0.00284212]
[1642422489656,1.28856767,3267.9,3267.2,0.76498]
[1642422489657,0.00113685,3267.9,3267.2,0.76498]
[1642422489854,0.00113685,3267.9,3267.3,2.36580099]
[1642422490057,0.00113685,3267.9,3267.4,0.443]
[1642422490254,0.00113685,3267.9,3267.4,0.44470527]
[1642422490453,0.00113685,3267.9,3267.5,0.00113685]
[1642422490656,0.00113685,3267.9,3267.6,0.443]
[1642422490855,0.00113685,3267.9,3267.7,2.36137102]
[1642422491053,2.93902642,3270.2,3267.9,0.03736295]
[1642422491054,3.9412,3269.4,3267.9,0.03736295]
[1642422491255,3.9412,3269.4,3268.0,0.443]
[1642422491453,0.00625266,3269.0,3268.0,0.443]
[1642422491653,0.00625266,3269.0,3268.0,1.443]
[1642422491854,3.9412,3269.4,3268.0,1.443]
[1642422491855,1.51509022,3268.9,3268.0,2.8645479]
[1642422492255,0.00511581,3268.8,3268.0,2.8645479]
[1642422492654,0.00454739,3268.7,3268.2,0.76474]
[1642422492857,0.00454739,3268.7,3268.3,2.79290993]
[1642422493056,0.00397896,3268.6,3268.3,4.00040993]
[1642422493302,0.00397896,3268.6,3268.4,1.0]
[1642422493503,1.2201,3269.6,3268.5,2.70867575]
[1642422493699,3.6327,3269.8,3268.5,3.00867575]
[1642422493900,0.00795793,3269.3,3268.6,1.0]
[1642422494099,0.00795793,3269.3,3268.7,0.443]
[1642422494304,1.09933138,3269.4,3268.7,0.443]
[1642422494305,0.0073895,3269.2,3268.7,0.443]
[1642422494499,0.0073895,3269.2,3268.8,0.76455]
[1642422494699,0.00682108,3269.1,3268.9,0.76455]
[1642422494904,0.00682108,3269.1,3268.8,0.443]
[1642422495102,0.00625266,3269.0,3268.8,0.443]
[1642422495502,0.00568423,3268.9,3268.8,0.443]
[1642422495703,0.00568423,3268.9,3268.8,11.093]
[1642422497169,0.00568423,3268.9,3268.8,0.443]
[1642422499572,0.00568423,3268.9,3268.8,9.193]
[1642422500272,0.00568423,3268.9,3268.8,10.493]
[1642422500571,0.00568423,3268.9,3268.8,26.63433847]
[1642422500825,3.8317,3270.1,3268.9,14.98642472]
[1642422501007,3.8317,3270.1,3269.0,2.86947796]
[1642422501206,0.00625266,3270.0,3269.0,1.443]
[1642422501408,0.00625266,3270.0,3269.1,1.52891]
[1642422501606,3.8317,3270.1,3269.1,1.97191]
[1642422501607,0.00568424,3269.9,3269.1,1.97191]
[1642422502008,0.00511581,3269.8,3269.1,1.97191]
[1642422502410,0.00454739,3269.7,3269.1,1.97191]
[1642422502611,0.00454739,3269.7,3269.2,1.52892]
[1642422502907,0.00397897,3269.6,3269.5,0.04251727]
[1642422504112,0.00397897,3269.6,3269.5,22.98551727]
[1642422504311,0.35091456,3269.6,3269.5,0.48551727]
[1642422504550,0.35091456,3269.6,3269.5,6.73551727]
[1642422504749,0.35091456,3269.6,3269.5,5.43551727]
[1642422504951,0.35091456,3269.6,3269.5,6.43551727]
[1642422505254,0.00397897,3269.6,3269.5,0.48551727]
[1642422506056,0.122366,3270.9,3269.7,23.75]
[1642422506261,2.30525164,3271.2,3270.6,0.0128802]
[1642422506459,2.30525164,3271.2,3270.8,5.535]
[1642422506753,2.30525164,3271.2,3270.9,0.443]
[1642422506953,2.30525164,3271.2,3271.1,5.535]
[1642422507154,1.13533487,3271.2,3271.1,5.978]
[1642422507356,1.14442964,3271.2,3271.1,0.443]
[1642422508403,2.67530844,3271.2,3271.1,0.443]
[1642422509407,11.82530844,3271.2,3271.1,0.443]
[1642422509604,0.04113878,3271.0,3270.5,0.443]
[1642422509805,0.04113878,3271.0,3270.1,0.443]
[1642422509806,1.54118029,3271.0,3270.1,0.443]
[1642422510005,1.26480501,3270.0,3269.6,1.97195]
[1642422510206,0.0073895,3270.9,3269.6,1.20746]
[1642422510407,0.00170527,3269.9,3269.7,2.296934]
[1642422510606,0.00682108,3270.8,3269.6,1.20746]
[1642422510804,0.00113684,3269.8,3269.7,24.07876]
[1642422511005,3.7034,3271.1,3270.2,0.02624201]
[1642422511205,2.6949788,3271.2,3270.2,0.02624201]
[1642422511206,1.34306932,3270.7,3270.2,0.02624201]
[1642422511406,1.5308788,3271.2,3270.3,0.443]
[1642422511407,0.00682109,3271.0,3270.3,0.443]
[1642422511606,0.00682109,3271.0,3270.4,0.443]
[1642422511810,0.00625266,3270.9,3270.4,0.443]
[1642422512249,0.00568424,3270.8,3270.4,0.443]
[1642422512449,1.37076831,3270.7,3270.4,0.443]
[1642422512650,1.37076831,3270.7,3270.5,2.18214903]
[1642422512651,1.37588413,3270.7,3270.5,2.18214903]
[1642422512850,0.00454739,3270.6,3270.5,2.18214903]
[1642422513348,0.00454739,3270.6,3270.4,0.443]
[1642422513749,0.00397897,3270.5,3270.4,0.443]
[1642422514351,0.00397897,3270.5,3270.4,9.693]
[1642422514750,0.00397897,3270.5,3270.4,0.443]
[1642422515350,0.00397897,3270.5,3270.4,9.543]
[1642422516198,1.53162031,3270.5,3270.4,0.443]
[1642422516398,1.53162031,3270.5,3270.0,0.443]
[1642422516399,0.01432052,3270.4,3270.0,0.443]
[1642422516597,1.53162031,3270.5,3270.0,0.443]
[1642422516800,0.00284212,3270.3,3270.0,0.443]
[1642422516997,0.00341054,3270.4,3270.0,0.443]
[1642422517197,0.0022737,3270.2,3270.0,0.443]
[1642422517399,0.00284212,3270.3,3270.0,0.443]
[1642422517599,0.00170527,3270.1,3270.0,0.443]
[1642422517799,0.0022737,3270.2,3270.1,1.52858]
[1642422518000,1.52764134,3270.5,3270.2,0.03244835]
[1642422518199,1.52764134,3270.5,3270.3,0.443]
[1642422518401,0.00341054,3270.4,3270.1,15.17858]
[1642422518698,0.00284212,3270.3,3270.2,0.443]
[1642422518899,0.01047828,3270.2,3270.0,0.76438]
[1642422519101,0.00284212,3270.3,3270.1,11.793]
[1642422519301,1.52764134,3270.5,3270.1,11.793]
[1642422519751,2.7609788,3271.2,3270.2,1.53232025]
[1642422519752,0.00341054,3270.4,3270.2,1.53232025]
[1642422519950,0.00341054,3270.4,3270.2,1.97153]
[1642422520152,0.00284212,3270.3,3270.2,1.97153]
[1642422520351,0.00284212,3270.3,3270.2,17.02153]
[1642422520751,0.122409,3271.3,3270.3,17.05]
[1642422520953,0.122409,3271.3,3270.6,0.76411]
[1642422521151,0.00454739,3271.1,3270.7,0.443]
[1642422521352,0.00454739,3271.1,3270.8,2.17922952]
[1642422521552,0.00397897,3271.0,3270.9,17.193]
[1642422523299,0.122409,3271.3,3271.1,0.76405]
[1642422523502,0.122409,3271.3,3271.2,22.66545745]
[1642422524500,0.122409,3271.3,3271.2,22.96545745]
[1642422524701,2.6643704,3271.8,3271.4,0.7638]
[1642422524900,3.63,3272.3,3271.6,20.25]
[1642422525099,3.63,3272.3,3271.7,2.7037813]
[1642422525300,3.78931,3272.5,3271.7,3.7037813]
[1642422525501,1.42154608,3273.8,3272.1,1.32951045]
[1642422525502,1.54073167,3273.2,3272.1,1.32951045]
[1642422525703,2.41818009,3273.7,3272.3,5.535]
[1642422525903,0.00454739,3273.1,3272.6,0.76371]
[1642422526108,0.00454739,3273.1,3272.7,2.74201038]
[1642422526301,2.68988101,3273.7,3272.7,2.74201038]
[1642422526302,0.00397896,3273.0,3272.7,2.74201038]
[1642422526801,0.00341054,3272.9,3272.7,2.74201038]
[1642422527050,0.00341054,3272.9,3272.8,10.63489222]
[1642422527253,0.89319908,3273.9,3272.8,11.07789222]
[1642422527449,0.89319908,3273.9,3273.1,6.29849]
[1642422527652,2.32976837,3274.2,3273.2,0.443]
[1642422528152,0.01023162,3274.1,3273.2,1.443]
[1642422528354,0.00170882,3274.3,3273.8,0.76328]
[1642422528550,0.00170882,3274.3,3274.1,0.01126255]
[1642422528752,0.00170882,3274.3,3274.2,6.093]
[1642422528950,0.00170882,3274.3,3274.2,0.443]
[1642422529150,0.00284567,3274.3,3274.2,0.443]
[1642422530151,0.00284567,3274.3,3274.2,9.193]
[1642422530801,0.00284567,3274.3,3274.2,11.5338861]
[1642422531804,4.567e-05,3274.3,3274.2,12.8338861]
[1642422532004,4.567e-05,3274.3,3274.2,9.193]
[1642422532203,4.567e-05,3274.3,3274.2,30.678]
[1642422532406,0.12223,3274.8,3274.3,18.14747634]
[1642422532704,0.00170527,3274.6,3274.4,3.42581]
[1642422532903,0.00170527,3274.6,3274.4,2.42581]
[1642422533107,0.07223,3274.8,3274.6,10.55]
[1642422533306,0.122248,3275.7,3274.7,2.75307984]
[1642422533505,0.122248,3275.7,3275.2,5.535]
[1642422533706,0.122248,3275.7,3275.4,8.4]
[1642422533908,0.122248,3275.7,3275.5,0.443]
[1642422534107,1.2586702,3275.7,3275.4,0.8868]
[1642422534304,1.2586702,3275.7,3275.5,0.366]
[1642422534305,0.122248,3275.7,3275.5,0.366]
[1642422534550,0.072248,3275.7,3275.5,0.366]
[1642422534753,0.072248,3275.7,3275.5,1.89204]
[1642422535353,3.8636,3276.9,3275.5,1.89204]
[1642422535552,1.1366469,3276.9,3275.6,2.31007984]
[1642422535753,1.1366469,3276.9,3275.5,5.08474098]
[1642422535754,3.87347304,3277.2,3275.5,3.71874098]
[1642422535954,7.778,3277.6,3275.8,0.02833703]
[1642422536153,0.00625266,3276.8,3276.0,0.00762032]
[1642422536354,0.00625266,3276.8,3276.1,0.366]
[1642422536557,0.00568423,3276.7,3276.3,0.00837032]
[1642422536754,0.00568423,3276.7,3276.4,0.366]
[1642422536956,1.44339909,3276.6,3276.5,0.366]
[1642422537161,1.44339909,3276.6,3276.5,6.266]
[1642422537355,1.44339909,3276.6,3276.5,0.366]
[1642422538155,1.44339909,3276.6,3276.0,0.366]
[1642422538618,1.32859297,3276.2,3276.0,0.366]
[1642422539015,0.00227369,3276.1,3276.0,0.366]
[1642422539217,0.00227369,3276.1,3276.0,10.916]
[1642422539414,0.00227369,3276.1,3276.0,0.366]
[1642422540015,0.00227369,3276.1,3276.0,0.666]
[1642422540215,1.6112163,3277.3,3276.2,0.00491449]
[1642422540414,1.6112163,3277.3,3276.3,0.366]
[1642422540617,0.00625266,3277.2,3276.4,1.12882]
[1642422540814,0.00625266,3277.2,3276.5,0.366]
[1642422541016,1.22861811,3276.6,3276.5,0.366]
[1642422541214,1.20258065,3276.8,3276.5,0.366]
[1642422541419,1.6112163,3277.3,3276.5,0.366]
[1642422541420,0.00284212,3276.6,3276.5,0.366]
[1642422541614,1.6112163,3277.3,3276.5,0.366]
[1642422541615,0.00341054,3276.7,3276.5,0.366]
[1642422541818,1.6112163,3277.3,3276.6,20.1]
[1642422542059,1.6112163,3277.3,3276.7,0.03159482]
[1642422542258,1.6112163,3277.3,3276.9,0.0040431]
[1642422542259,0.00341054,3277.2,3276.9,0.0040431]
[1642422542460,0.00341054,3277.2,3277.0,0.366]
[1642422542658,0.00284212,3277.1,3277.0,1.52523]
[1642422542859,3.8294,3277.9,3277.2,0.01841762]
[1642422543059,0.01200223,3278.8,3277.3,0.366]
[1642422543259,0.01200223,3278.8,3277.2,0.8415]
[1642422543260,0.00397896,3277.8,3277.2,0.8415]
[1642422543660,0.00341054,3277.7,3277.3,1.45986259]
[1642422543960,0.00284211,3277.6,3277.3,2.88846259]
[1642422544160,0.00284211,3277.6,3277.4,0.00981766]
[1642422544364,0.00227369,3277.5,3277.3,3.4680164]
[1642422544661,1.51413394,3278.6,3277.4,24.3086]
[1642422544959,1.51413394,3278.6,3277.5,0.76247]
[1642422544960,0.00454739,3278.3,3277.5,0.76247]
[1642422545159,0.00454739,3278.3,3277.6,0.39823164]
[1642422545362,0.00397896,3278.2,3277.6,0.366]
[1642422545561,0.00171098,3279.1,3277.8,23.7]
[1642422545804,0.00171098,3279.1,3277.9,0.366]
[1642422546004,0.00171098,3279.1,3278.0,7.35044582]
[1642422546206,8.737e-05,3278.4,3278.1,0.366]
[1642422546404,0.00171098,3279.1,3278.1,0.366]
[1642422546405,0.00171098,3279.1,3278.8,0.76218]
[1642422546606,0.00171098,3279.1,3278.9,0.366]
[1642422546809,2.6643704,3279.7,3279.0,18.55]
[1642422547009,2.6643704,3279.7,3279.2,0.00795636]
[1642422547206,2.6643704,3279.7,3279.0,18.58260678]
[1642422547207,2.61778094,3279.7,3279.3,1.12809]
[1642422547406,2.61778094,3279.7,3278.8,1.81944648]
[1642422547407,0.00870147,3279.6,3279.1,1.52408]
[1642422547607,2.61778094,3279.7,3279.1,1.52408]
[1642422547608,2.61778094,3279.7,3279.4,0.00113684]
[1642422547807,1.5431695,3279.5,3279.2,0.00227369]
[1642422548008,1.5431695,3279.5,3279.3,0.366]
[1642422548408,1.5431695,3279.5,3279.4,0.00113684]
[1642422548609,1.5431695,3279.5,3277.9,5.65238484]
[1642422548610,0.76249,3279.2,3278.5,0.366]
[1642422548811,0.76249,3279.2,3278.1,0.366]
[1642422548812,1.54468644,3279.0,3278.1,0.366]
[1642422549007,2.66369883,3278.9,3278.6,0.00454739]
[1642422549208,0.3,3278.9,3278.6,0.00454739]
[1642422549683,23.7,3278.7,3277.3,0.366]
[1642422549875,0.03689653,3278.6,3278.2,0.0022737]
[1642422550076,0.01324242,3278.8,3278.2,0.0022737]
[1642422550275,0.01324242,3278.8,3277.0,2.2570801]
[1642422550475,1.24852304,3278.0,3277.1,0.366]
[1642422550677,1.24852304,3278.0,3277.1,0.37452635]
[1642422550977,1.24852304,3278.0,3277.2,0.00795793]
[1642422551276,1.24852304,3278.0,3277.3,1.12861]
[1642422551676,1.24852304,3278.0,3277.5,0.76252]
[1642422551875,1.24852304,3278.0,3277.6,0.366]
[1642422552077,1.24852304,3278.0,3277.6,0.37168424]
[1642422552279,1.24852304,3278.0,3277.7,0.00511581]
[1642422552577,1.1544044,3277.9,3277.7,0.00511581]
[1642422553403,1.4544044,3277.9,3277.1,0.00852635]
[1642422553604,1.4544044,3277.9,3277.3,0.00738951]
[1642422553802,1.4544044,3277.9,3276.7,1.13956005]
[1642422554102,1.4544044,3277.9,3276.8,0.01023162]
[1642422554303,1.17965378,3276.9,3276.8,0.01023162]
[1642422554503,1.4544044,3277.9,3276.8,0.01023162]
[1642422555303,0.02499735,3277.8,3276.8,0.01023162]
[1642422555504,1.348698,3277.3,3276.9,0.76272]
[1642422555702,1.348698,3277.3,3276.8,0.01023162]
[1642422555903,1.348698,3277.3,3277.0,0.00909478]
[1642422556102,1.348698,3277.3,3276.8,0.01023162]
[1642422556302,1.1544044,3277.9,3276.9,8.55]
[1642422556303,0.5031024,3277.9,3276.9,8.55]
[1642422556503,0.5031024,3277.9,3277.0,0.0265312]
[1642422556704,2.60603263,3277.4,3277.0,0.03562598]
[1642422556903,0.0194514,3277.3,3277.1,0.00852635]
[1642422557356,0.0194514,3277.3,3276.7,0.366]
[1642422557357,2.60603263,3277.4,3276.8,0.01023162]
[1642422557560,0.05172412,3277.3,3276.8,0.01023162]
[1642422558058,2.90603263,3277.4,3276.1,0.01421059]
[1642422558260,2.32967682,3277.3,3276.1,0.01421059]
[1642422558457,2.32967682,3277.3,3274.6,1.07138484]
[1642422558458,0.76319,3276.4,3274.7,0.40466412]
[1642422558657,0.76319,3276.4,3275.3,0.01875798]
[1642422558658,1.4141456,3275.8,3275.3,0.01875798]
[1642422558859,1.4986945,3275.4,3275.3,0.01875798]
[1642422560061,1.4986945,3275.4,3275.1,0.00568423]
[1642422560853,1.4986945,3275.4,3274.7,0.76325]
[1642422561038,0.76325,3275.7,3275.4,1.02440993]
[1642422561240,1.44200265,3275.5,3275.4,1.02440993]
[1642422561439,1.2200204,3275.6,3275.5,0.00341054]
[1642422561638,1.2200204,3275.6,3275.4,1.02440993]
[1642422561639,0.76317,3276.1,3275.4,1.02838889]
[1642422561839,0.3,3275.6,3275.5,0.00341054]
[1642422562039,0.3,3275.9,3275.5,0.00341054]
[1642422562438,1.22428442,3275.8,3275.5,0.00341054]
[1642422562938,1.11639949,3275.7,3275.5,0.00341054]
[1642422563139,1.41639949,3275.7,3275.5,0.00341054]
[1642422563338,1.11639949,3275.7,3275.5,0.00341054]
[1642422563539,1.4283415,3275.7,3275.5,0.00341054]
[1642422563741,1.41639949,3275.7,3275.5,0.00341054]
[1642422564239,1.11639949,3275.7,3275.5,0.00341054]
[1642422564439,1.41639949,3275.7,3275.5,0.00341054]
[1642422565455,19.38112245,3275.6,3273.9,3.4023]
[1642422565757,0.01386579,3275.3,3274.0,0.00852635]
[1642422565956,3.02461697,3275.4,3274.0,0.00852635]
[1642422566156,0.3,3275.4,3274.0,0.00852635]